fUSD/lending_fUSD_20250507
["ID","MTS","AMOUNT","RATE_DAILY","PERIOD"]
[360177649,1746601832810,-171.3855,0.00019527,2]
[360177651,1746601832821,-450.67459584,0.00019527,2]
[360177653,1746601832830,-450.0,0.00019527,2]
[360177655,1746601832840,-518.3666763,0.00019527,2]
[360177657,1746601832849,-450.0,0.00019527,2]
[360177659,1746601832858,-237.73621968,0.00019527,2]
[360177663,1746601838446,-185.50252633,0.00019526,2]
[360177664,1746601838456,-500.0,0.00019526,2]
[360177665,1746601838465,-396.78581334,0.00019526,2]
[360177666,1746601838544,-103.21418666,0.00019526,2]
[360177667,1746601838553,-476.22831013,0.00019526,2]
[360177668,1746601838563,-500.0,0.00019526,2]
[360177669,1746601838573,-28.91422882,0.00019526,2]
[360177670,1746601840612,-471.08577118,0.00019526,2]
[360177671,1746601840622,-28.75926653,0.00019526,2]
[360177672,1746601840634,-187.95767689,0.00019526,2]
[360177673,1746601840643,-500.0,0.00019526,2]
[360177674,1746601840653,-500.0,0.00019526,2]
[360177675,1746601840662,-500.0,0.00019526,2]
[360177676,1746601840671,-500.0,0.00019526,2]
[360177677,1746601840680,-500.0,0.00019526,2]
[360177678,1746601840689,-281.96187589,0.00019526,2]
[360177679,1746601840801,-218.03812411,0.00019526,2]
[360177680,1746601840811,-492.35961836,0.00019526,2]
[360177681,1746601840910,-7.64038164,0.00019526,2]
[360177682,1746601840920,-212.26378032,0.00019527,2]
[360177683,1746601840929,-450.0,0.00019527,2]
[360177684,1746601840940,-450.0,0.00019527,2]
[360177685,1746601840949,-450.0,0.00019527,2]
[360177686,1746601840958,-450.0,0.00019527,2]
[360177687,1746601840968,-450.0,0.00019527,2]
[360177688,1746601840977,-450.0,0.00019527,2]
[360177689,1746601840986,-450.0,0.00019527,2]
[360177690,1746601840996,-450.0,0.00019527,2]
[360177691,1746601841005,-470.0,0.00019527,2]
[360177692,1746601841014,-490.12,0.00019527,2]
[360177693,1746601841023,-450.0,0.00019527,2]
[360177694,1746601841033,-450.0,0.00019527,2]
[360177695,1746601841043,-798.0,0.00019527,2]
[360177696,1746601841052,-450.0,0.00019527,2]
[360177697,1746601841061,-450.0,0.00019527,2]
[360177698,1746601841070,-1250.96,0.00019527,2]
[360177699,1746601841079,-450.0,0.00019527,2]
[360177700,1746601841088,-450.0,0.00019527,2]
[360177701,1746601841098,-450.0,0.00019527,2]
[360177702,1746601841107,-498.58,0.00019527,2]
[360177703,1746601841115,-450.0,0.00019527,2]
[360177704,1746601841124,-450.0,0.00019527,2]
[360177705,1746601841132,-1896.11,0.00019527,2]
[360177706,1746601841141,-450.0,0.00019527,2]
[360177707,1746601841150,-162.96537,0.00019527,2]
[360177708,1746601841159,-450.0,0.00019527,2]
[360177709,1746601841169,-2783.303194,0.00019527,2]
[360177710,1746601841178,-450.0,0.00019527,2]
[360177711,1746601841187,-450.0,0.00019527,2]
[360177712,1746601841196,-450.0,0.00019527,2]
[360177713,1746601841205,-450.0,0.00019527,2]
[360177714,1746601841214,-450.0,0.00019527,2]
[360177715,1746601841223,-450.0,0.00019527,2]
[360177716,1746601841231,-262.16,0.00019527,2]
[360177717,1746601841240,-7870.186506,0.00019527,2]
[360177718,1746601841250,-450.0,0.00019527,2]
[360177719,1746601841260,-230.463928,0.00019527,2]
[360177720,1746601841269,-450.0,0.00019527,2]
[360177721,1746601841277,-450.0,0.00019527,2]
[360177722,1746601841287,-450.0,0.00019527,2]
[360177723,1746601841297,-248.68201544,0.00019527,2]
[360177724,1746601841306,-195.62772247,0.00019527,2]
[360177725,1746601841316,-241.7082627,0.00019527,2]
[360177726,1746601841325,-200.98557852,0.00019527,2]
[360177727,1746601841335,-283.86826554,0.00019527,2]
[360177728,1746601841348,-170.0966731,0.00019527,2]
[360177729,1746601841357,-500.0,0.00019527,2]
[360177730,1746601841366,-500.0,0.00019527,2]
[360177731,1746601841376,-500.0,0.00019527,2]
[360177732,1746601841385,-500.0,0.00019527,2]
[360177733,1746601841393,-281.75800078,0.00019527,2]
[360177734,1746601841403,-500.0,0.00019527,2]
[360177735,1746601841412,-500.0,0.00019527,2]
[360177736,1746601841420,-500.0,0.00019527,2]
[360177737,1746601841430,-500.0,0.00019527,2]
[360177738,1746601841439,-1917.13,0.00019527,2]
[360177739,1746601841448,-500.0,0.00019527,2]
[360177740,1746601841457,-201.03840957,0.00019527,2]
[360177741,1746601841466,-364103.03068337,0.00019527,2]
[360177742,1746601841475,-55710.30927836,0.00019528,2]
[360177743,1746601841485,-1063.58,0.00019528,2]
[360177744,1746601841494,-450.0,0.00019528,2]
[360177745,1746601841503,-523.0,0.00019528,2]
[360177746,1746601841513,-450.0,0.00019528,2]
[360177747,1746601841522,-450.0,0.00019528,2]
[360177748,1746601841531,-504.07256463,0.00019528,2]
[360177749,1746601841541,-969.03,0.00019528,2]
[360177750,1746601841551,-475.95,0.00019528,2]
[360177751,1746601841560,-494.71,0.00019528,2]
[360177752,1746601841570,-450.0,0.00019528,2]
[360177753,1746601841579,-576.16845544,0.00019529,2]
[360177754,1746601841589,-495.96595279,0.00019529,2]
[360177755,1746601841598,-182.06266934,0.00019529,2]
[360177756,1746601841607,-187.06647206,0.00019529,2]
[360177757,1746601841616,-472.03657244,0.00019529,2]
[360177758,1746601841626,-476.24,0.00019529,2]
[360177759,1746601841635,-450.0,0.00019529,2]
[360177760,1746601841644,-831.36,0.00019529,2]
[360177761,1746601841653,-450.0,0.00019529,2]
[360177762,1746601841663,-450.0,0.00019529,2]
[360177763,1746601841673,-450.0,0.00019529,2]
[360177764,1746601841682,-568.22,0.00019529,2]
[360177765,1746601841691,-450.0,0.00019529,2]
[360177766,1746601841701,-1271.83,0.00019529,2]
[360177767,1746601841711,-450.0,0.00019529,2]
[360177768,1746601841720,-450.0,0.00019529,2]
[360177769,1746601841729,-531.08,0.00019529,2]
[360177770,1746601841739,-450.0,0.00019529,2]
[360177771,1746601841748,-450.0,0.00019529,2]
[360177772,1746601841758,-450.0,0.00019529,2]
[360177773,1746601841767,-1965.79,0.00019529,2]
[360177774,1746601841777,-450.0,0.00019529,2]
[360177775,1746601841786,-450.0,0.00019529,2]
[360177776,1746601841795,-1159.47,0.00019529,2]
[360177777,1746601841805,-851.9,0.00019529,2]
[360177778,1746601841815,-450.0,0.00019529,2]
[360177779,1746601841824,-450.0,0.00019529,2]
[360177780,1746601841833,-297.55880084,0.0001953,2]
[360177781,1746601841842,-175.5329935,0.0001953,3]
[360177782,1746601841852,-1037.39496658,0.0001953,2]
[360177783,1746601841861,-2325.7286,0.0001953,2]
[360177784,1746601841870,-510.35587044,0.00019533,2]
[360177785,1746601841880,-1925.84305294,0.00019533,2]
[360177786,1746601841889,-450.0,0.0001954,2]
[360177787,1746601841898,-450.0,0.0001954,2]
[360177788,1746601841908,-450.0,0.0001954,2]
[360177789,1746601841917,-450.0,0.0001954,2]
[360177790,1746601841926,-450.0,0.0001954,2]
[360177791,1746601841935,-450.0,0.0001954,2]
[360177792,1746601841945,-450.0,0.0001954,2]
[360177793,1746601841954,-450.0,0.0001954,2]
[360177794,1746601841963,-450.0,0.0001954,2]
[360177795,1746601841973,-490.12,0.0001954,2]
[360177796,1746601841982,-450.0,0.0001954,2]
[360177797,1746601841991,-450.0,0.0001954,2]
[360177798,1746601842000,-798.0,0.0001954,2]
[360177799,1746601842009,-450.0,0.0001954,2]
[360177800,1746601842018,-1250.96,0.0001954,2]
[360177801,1746601842028,-450.0,0.0001954,2]
[360177802,1746601842037,-450.0,0.0001954,2]
[360177803,1746601842046,-450.0,0.0001954,2]
[360177804,1746601842055,-498.58,0.0001954,2]
[360177805,1746601842064,-450.0,0.0001954,2]
[360177806,1746601842073,-450.0,0.0001954,2]
[360177807,1746601842082,-1896.11,0.0001954,2]
[360177808,1746601842091,-450.0,0.0001954,2]
[360177809,1746601842100,-450.0,0.0001954,2]
[360177810,1746601842110,-2783.303194,0.0001954,2]
[360177811,1746601842119,-450.0,0.0001954,2]
[360177812,1746601842128,-450.0,0.0001954,2]
[360177813,1746601842138,-450.0,0.0001954,2]
[360177814,1746601842148,-450.0,0.0001954,2]
[360177815,1746601842157,-7870.186506,0.0001954,2]
[360177816,1746601842167,-450.0,0.0001954,2]
[360177817,1746601842177,-230.463928,0.0001954,2]
[360177818,1746601842186,-450.0,0.0001954,2]
[360177819,1746601842196,-450.0,0.0001954,2]
[360177820,1746601842206,-450.0,0.0001954,2]
[360177821,1746601842216,-1917.13,0.0001954,2]
[360177822,1746601842226,-300.0,0.0001954,2]
[360177823,1746601842237,-450.0,0.00019541,2]
[360177824,1746601842246,-450.0,0.00019541,2]
[360177825,1746601842255,-691.04,0.00019541,2]
[360177826,1746601842265,-545.43,0.00019541,2]
[360177827,1746601842274,-450.0,0.00019541,2]
[360177828,1746601842285,-450.0,0.00019541,2]
[360177829,1746601842294,-799.42,0.00019541,2]
[360177830,1746601842303,-450.0,0.00019541,2]
[360177831,1746601842313,-1719.87,0.00019541,2]
[360177832,1746601842323,-450.0,0.00019541,2]
[360177833,1746601842332,-487.75054878,0.00019541,2]
[360177834,1746601842346,-1234.02,0.00019541,2]
[360177835,1746601842356,-1656.58,0.00019541,2]
[360177836,1746601842366,-1013.8,0.00019541,2]
[360177837,1746601842375,-551.76,0.00019541,2]
[360177838,1746601842386,-450.0,0.00019541,2]
[360177839,1746601842395,-450.0,0.00019541,2]
[360177840,1746601842405,-602.23,0.00019541,2]
[360177841,1746601842416,-2991.93,0.00019541,2]
[360177842,1746601842425,-450.0,0.00019541,2]
[360177843,1746601842434,-2608.41,0.00019541,2]
[360177844,1746601842443,-9827.28,0.00019541,2]
[360177845,1746601842453,-885.96,0.00019541,2]
[360177846,1746601842463,-1371.71,0.00019541,2]
[360177847,1746601842472,-7465.07,0.00019541,2]
[360177848,1746601842481,-151.0,0.00019573,2]
[360177849,1746601842491,-1522.0,0.000196,2]
[360177850,1746601842500,-1200.0,0.000196,7]
[360177851,1746601842510,-180.64510225,0.00019616,2]
[360177852,1746601842520,-6452.4236186,0.0001962,2]
[360177853,1746601842529,-476.24,0.00019621,2]
[360177854,1746601842539,-450.0,0.00019621,2]
[360177855,1746601842549,-1063.58,0.00019621,2]
[360177856,1746601842559,-831.36,0.00019621,2]
[360177857,1746601842568,-168.7980622,0.00019621,2]
[360177858,1746601842578,-523.0,0.00019621,2]
[360177859,1746601842587,-450.0,0.00019621,2]
[360177860,1746601842597,-450.0,0.00019621,2]
[360177861,1746601842607,-450.0,0.00019621,2]
[360177862,1746601842617,-450.0,0.00019621,2]
[360177863,1746601842627,-450.0,0.00019621,2]
[360177864,1746601842637,-1271.83,0.00019621,2]
[360177865,1746601842647,-450.0,0.00019621,2]
[360177866,1746601842656,-490.12,0.00019621,2]
[360177867,1746601842665,-450.0,0.00019621,2]
[360177868,1746601842675,-531.08,0.00019621,2]
[360177869,1746601842684,-547.43514998,0.00019621,2]
[360177870,1746601842694,-1250.96,0.00019621,2]
[360177871,1746601842703,-969.03,0.00019621,2]
[360177872,1746601842713,-544.63052102,0.00019621,2]
[360177873,1746601842723,-450.0,0.00019621,2]
[360177874,1746601842733,-475.95,0.00019621,2]
[360177875,1746601842742,-1965.79,0.00019621,2]
[360177876,1746601842752,-450.0,0.00019621,2]
[360177877,1746601842761,-450.0,0.00019621,2]
[360177878,1746601842771,-494.71,0.00019621,2]
[360177879,1746601842781,-1159.47,0.00019621,2]
[360177880,1746601842790,-450.0,0.00019621,2]
[360177881,1746601842800,-851.9,0.00019621,2]
[360177882,1746601842810,-450.0,0.00019621,2]
[360177883,1746601842819,-450.0,0.00019621,2]
[360177884,1746601842829,-450.0,0.00019621,2]
[360177885,1746601842839,-450.0,0.00019621,2]
[360177886,1746601842848,-450.0,0.00019621,2]
[360177887,1746601842858,-450.0,0.00019622,2]
[360177888,1746601842868,-450.0,0.00019622,2]
[360177889,1746601842877,-450.0,0.00019622,2]
[360177890,1746601842886,-450.0,0.00019622,2]
[360177891,1746601842896,-450.0,0.00019622,2]
[360177892,1746601842905,-450.0,0.00019622,2]
[360177893,1746601842915,-450.0,0.00019622,2]
[360177894,1746601842924,-490.0,0.00019622,2]
[360177895,1746601842934,-818.89,0.00019622,2]
[360177896,1746601842943,-818.89,0.00019622,2]
[360177897,1746601842953,-450.0,0.00019622,2]
[360177898,1746601842962,-450.0,0.00019622,2]
[360177899,1746601842972,-470.0,0.00019622,2]
[360177900,1746601842981,-450.0,0.00019622,2]
[360177901,1746601842991,-450.0,0.00019622,2]
[360177902,1746601843000,-450.0,0.00019622,2]
[360177903,1746601843010,-450.0,0.00019622,2]
[360177904,1746601843019,-450.0,0.00019622,2]
[360177905,1746601843028,-250.0,0.00019622,2]
[360177906,1746601843038,-450.0,0.00019622,2]
[360177907,1746601843047,-250.0,0.00019622,2]
[360177908,1746601843057,-450.0,0.00019622,2]
[360177909,1746601843066,-450.0,0.00019622,2]
[360177910,1746601843075,-476.96771207,0.00019622,2]
[360177911,1746601843084,-450.0,0.00019622,2]
[360177912,1746601843094,-450.0,0.00019622,2]
[360177913,1746601843103,-450.0,0.00019622,2]
[360177914,1746601843112,-450.0,0.00019622,2]
[360177915,1746601843122,-450.0,0.00019622,2]
[360177917,1746601843131,-450.0,0.00019622,2]
[360177919,1746601843141,-450.0,0.00019622,2]
[360177921,1746601843150,-450.0,0.00019622,2]
[360177923,1746601843160,-450.0,0.00019622,2]
[360177925,1746601843169,-450.0,0.00019622,2]
[360177926,1746601843179,-450.0,0.00019622,2]
[360177927,1746601843188,-450.0,0.00019622,2]
[360177928,1746601843197,-450.0,0.00019622,2]
[360177930,1746601843206,-450.0,0.00019622,2]
[360177931,1746601843216,-386.64290069,0.00019622,2]
[360177932,1746601843225,-529.56,0.00019622,2]
[360177934,1746601843234,-450.0,0.00019622,2]
[360177936,1746601843244,-450.0,0.00019622,2]
[360177937,1746601843253,-450.0,0.00019622,2]
[360177939,1746601843262,-450.0,0.00019622,2]
[360177940,1746601843271,-450.0,0.00019622,2]
[360177941,1746601843282,-450.0,0.00019622,2]
[360177942,1746601843291,-490.0,0.00019622,2]
[360177943,1746601843301,-450.0,0.00019622,2]
[360177944,1746601843310,-450.0,0.00019622,2]
[360177945,1746601843319,-450.0,0.00019622,2]
[360177946,1746601843329,-418.05230118,0.00019622,2]
[360177947,1746601843343,-450.0,0.00019622,2]
[360177948,1746601843352,-450.0,0.00019622,2]
[360177949,1746601843361,-492.57182336,0.00019622,2]
[360177950,1746601843371,-450.0,0.00019622,2]
[360177951,1746601843380,-252.11917569,0.00019622,2]
[360177952,1746601843389,-450.0,0.00019622,2]
[360177953,1746601843399,-450.0,0.00019622,2]
[360177954,1746601843408,-450.0,0.00019622,2]
[360177955,1746601843418,-450.0,0.00019622,2]
[360177956,1746601843427,-450.0,0.00019622,2]
[360177957,1746601843437,-450.0,0.00019622,2]
[360177958,1746601843447,-450.0,0.00019622,2]
[360177959,1746601843456,-528.55,0.00019622,2]
[360177960,1746601843466,-450.0,0.00019622,2]
[360177961,1746601843475,-450.0,0.00019622,2]
[360177962,1746601843486,-450.0,0.00019622,2]
[360177963,1746601843495,-450.0,0.00019622,2]
[360177964,1746601843505,-450.0,0.00019622,2]
[360177965,1746601843515,-162.85260813,0.00019622,2]
[360177966,1746601843524,-450.0,0.00019622,2]
[360177967,1746601843534,-450.0,0.00019622,2]
[360177968,1746601843544,-450.0,0.00019622,2]
[360177969,1746601843554,-450.0,0.00019622,2]
[360177970,1746601843563,-450.0,0.00019622,2]
[360177971,1746601843572,-450.0,0.00019622,2]
[360177972,1746601843581,-450.0,0.00019622,2]
[360177973,1746601843590,-468.97778158,0.00019622,2]
[360177974,1746601843600,-180.54758061,0.00019622,2]
[360177975,1746601843609,-450.0,0.00019622,2]
[360177976,1746601843618,-450.0,0.00019622,2]
[360177977,1746601843628,-450.0,0.00019622,2]
[360177978,1746601843637,-450.0,0.00019622,2]
[360177979,1746601843646,-450.0,0.00019622,2]
[360177980,1746601843656,-450.0,0.00019622,2]
[360177981,1746601843665,-467.35199427,0.00019622,2]
[360177982,1746601843675,-426.83684839,0.00019622,2]
[360177983,1746601843684,-450.0,0.00019622,2]
[360177984,1746601843694,-450.0,0.00019622,2]
[360177985,1746601843705,-537.28,0.00019622,2]
[360177986,1746601843714,-537.28,0.00019622,2]
[360177987,1746601843723,-522.9463058,0.00019622,2]
[360177988,1746601843732,-450.0,0.00019622,2]
[360177989,1746601843741,-450.0,0.00019622,2]
[360177990,1746601843750,-450.0,0.00019622,2]
[360177991,1746601843758,-450.0,0.00019622,2]
[360177992,1746601843767,-527.76506426,0.00019622,2]
[360177994,1746601843777,-463.66,0.00019622,2]
[360177996,1746601843786,-463.66,0.00019622,2]
[360177997,1746601843795,-450.0,0.00019622,2]
[360177998,1746601843804,-509.53106383,0.00019622,2]
[360177999,1746601843813,-499.57,0.00019622,2]
[360178000,1746601843822,-499.57,0.00019622,2]
[360178001,1746601843831,-450.0,0.00019622,2]
[360178002,1746601843840,-450.0,0.00019622,2]
[360178003,1746601843849,-450.0,0.00019622,2]
[360178004,1746601843858,-450.0,0.00019622,2]
[360178005,1746601843867,-450.0,0.00019622,2]
[360178006,1746601843876,-450.0,0.00019622,2]
[360178007,1746601843885,-450.0,0.00019622,2]
[360178008,1746601843894,-450.0,0.00019622,2]
[360178009,1746601843903,-450.0,0.00019622,2]
[360178010,1746601843913,-450.0,0.00019622,2]
[360178011,1746601843922,-493.87,0.00019622,2]
[360178012,1746601843931,-493.87,0.00019622,2]
[360178013,1746601843940,-391.98047364,0.00019622,2]
[360178014,1746601843949,-464.54,0.00019622,2]
[360178015,1746601843959,-464.54,0.00019622,2]
[360178016,1746601843968,-418.60497989,0.00019622,2]
[360178017,1746601843977,-450.0,0.00019622,2]
[360178018,1746601843986,-450.0,0.00019622,2]
[360178019,1746601843995,-455.56392401,0.00019622,2]
[360178020,1746601844004,-450.0,0.00019622,2]
[360178021,1746601844014,-550.0,0.00019622,2]
[360178023,1746601844023,-737.35,0.00019622,2]
[360178025,1746601844032,-737.35,0.00019622,2]
[360178027,1746601844041,-492.01723161,0.00019622,2]
[360178029,1746601844050,-450.0,0.00019622,2]
[360178030,1746601844060,-450.0,0.00019622,2]
[360178031,1746601844068,-500.0,0.00019622,2]
[360178032,1746601844078,-450.0,0.00019622,2]
[360178033,1746601844088,-314.85401755,0.00019622,2]
[360178034,1746601844097,-450.0,0.00019622,2]
[360178035,1746601844106,-460.0,0.00019622,2]
[360178036,1746601844116,-450.0,0.00019622,2]
[360178037,1746601844125,-450.0,0.00019622,2]
[360178038,1746601844134,-151.0,0.00019622,2]
[360178039,1746601844143,-450.0,0.00019622,2]
[360178040,1746601844153,-550.53,0.00019622,2]
[360178041,1746601844162,-450.0,0.00019622,2]
[360178042,1746601844172,-450.0,0.00019622,2]
[360178043,1746601844181,-450.0,0.00019622,2]
[360178044,1746601844191,-450.0,0.00019622,2]
[360178045,1746601844199,-450.0,0.00019622,2]
[360178046,1746601844209,-450.0,0.00019622,2]
[360178047,1746601844219,-410.4912142,0.00019622,2]
[360178048,1746601844228,-504.52189058,0.00019622,2]
[360178049,1746601844238,-534.88429947,0.00019622,2]
[360178050,1746601844248,-450.0,0.00019622,2]
[360178051,1746601844257,-450.0,0.00019622,2]
[360178052,1746601844266,-316.76869888,0.00019622,2]
[360178053,1746601844460,-493.36161209,0.00019622,2]
[360178054,1746601844470,-519.81170274,0.00019622,2]
[360178055,1746601844480,-1354.96,0.00019622,2]
[360178056,1746601844490,-1354.96,0.00019622,2]
[360178057,1746601844499,-151.358908,0.00019622,2]
[360178058,1746601844509,-450.0,0.00019622,2]
[360178059,1746601844518,-450.0,0.00019622,2]
[360178060,1746601844528,-996.2,0.00019622,2]
[360178061,1746601844537,-996.2,0.00019622,2]
[360178062,1746601844546,-450.0,0.00019622,2]
[360178063,1746601844555,-588.75150315,0.00019622,2]
[360178064,1746601844565,-1117.83,0.00019622,2]
[360178065,1746601844574,-1117.83,0.00019622,2]
[360178066,1746601844583,-490.0,0.00019622,2]
[360178067,1746601844592,-450.0,0.00019622,2]
[360178068,1746601844601,-500.85368498,0.00019622,2]
[360178069,1746601844611,-532.28,0.00019622,2]
[360178070,1746601844620,-532.28,0.00019622,2]
[360178071,1746601844629,-450.0,0.00019622,2]
[360178072,1746601844639,-542.7914018,0.00019622,2]
[360178073,1746601844648,-450.0,0.00019622,2]
[360178074,1746601844657,-495.11750348,0.00019622,2]
[360178075,1746601844667,-490.56205437,0.00019622,2]
[360178076,1746601844676,-450.0,0.00019622,2]
[360178077,1746601844686,-450.0,0.00019622,2]
[360178078,1746601844695,-450.0,0.00019622,2]
[360178079,1746601844704,-450.0,0.00019622,2]
[360178080,1746601844714,-450.0,0.00019622,2]
[360178081,1746601844723,-1741.66,0.00019622,2]
[360178082,1746601844733,-1741.66,0.00019622,2]
[360178083,1746601844742,-450.0,0.00019622,2]
[360178084,1746601844751,-450.0,0.00019622,2]
[360178085,1746601844760,-300.89189137,0.00019622,2]
[360178086,1746601844769,-589.73,0.00019622,2]
[360178087,1746601844779,-589.73,0.00019622,2]
[360178088,1746601844788,-260.09051039,0.00019622,2]
[360178089,1746601844797,-450.0,0.00019622,2]
[360178090,1746601844806,-450.0,0.00019622,2]
[360178091,1746601844815,-678.57,0.00019622,2]
[360178092,1746601844824,-678.57,0.00019622,2]
[360178093,1746601844834,-450.0,0.00019622,2]
[360178094,1746601844843,-450.0,0.00019622,2]
[360178095,1746601844852,-453.76698098,0.00019622,2]
[360178096,1746601844861,-450.0,0.00019622,2]
[360178097,1746601844871,-450.0,0.00019622,2]
[360178098,1746601844880,-450.0,0.00019622,2]
[360178099,1746601844889,-450.0,0.00019622,2]
[360178100,1746601844898,-167.28908916,0.00019622,2]
[360178101,1746601844907,-470.0,0.00019622,2]
[360178102,1746601844917,-151.0,0.00019622,2]
[360178103,1746601844926,-151.0,0.00019622,2]
[360178104,1746601844935,-450.0,0.00019622,2]
[360178105,1746601844944,-450.0,0.00019622,2]
[360178106,1746601844953,-450.0,0.00019622,2]
[360178107,1746601844962,-450.0,0.00019622,2]
[360178108,1746601844971,-450.0,0.00019622,2]
[360178109,1746601844980,-450.0,0.00019622,2]
[360178110,1746601844989,-450.0,0.00019622,2]
[360178111,1746601844999,-450.0,0.00019622,2]
[360178112,1746601845008,-450.0,0.00019622,2]
[360178113,1746601845017,-450.0,0.00019622,2]
[360178114,1746601845027,-450.0,0.00019622,2]
[360178115,1746601845036,-450.0,0.00019622,2]
[360178116,1746601845045,-520.0,0.00019622,2]
[360178117,1746601845055,-450.0,0.00019622,2]
[360178118,1746601845064,-466.29695875,0.00019622,2]
[360178119,1746601845074,-152.098325,0.00019622,2]
[360178120,1746601845084,-450.0,0.00019622,2]
[360178121,1746601845097,-450.0,0.00019622,2]
[360178122,1746601845106,-450.0,0.00019622,2]
[360178123,1746601845115,-254.32785887,0.00019622,2]
[360178124,1746601845125,-450.0,0.00019622,2]
[360178125,1746601845134,-450.0,0.00019622,2]
[360178126,1746601845144,-450.0,0.00019622,2]
[360178127,1746601845153,-450.0,0.00019622,2]
[360178128,1746601845163,-465.9786761,0.00019622,2]
[360178129,1746601845172,-450.0,0.00019622,2]
[360178130,1746601845182,-151.0,0.00019622,2]
[360178131,1746601845191,-450.0,0.00019622,2]
[360178132,1746601845200,-151.0,0.00019622,2]
[360178133,1746601845209,-277.682923,0.00019622,2]
[360178134,1746601845218,-450.0,0.00019622,2]
[360178135,1746601845228,-550.0,0.00019622,2]
[360178136,1746601845237,-450.0,0.00019622,2]
[360178137,1746601845247,-450.0,0.00019622,2]
[360178138,1746601845256,-450.0,0.00019622,2]
[360178139,1746601845265,-450.0,0.00019622,2]
[360178140,1746601845274,-154.50612705,0.00019622,2]
[360178141,1746601845284,-450.0,0.00019622,2]
[360178142,1746601845293,-450.0,0.00019622,2]
[360178143,1746601845302,-151.0,0.00019622,2]
[360178144,1746601845312,-450.0,0.00019622,2]
[360178145,1746601845322,-450.0,0.00019622,2]
[360178146,1746601845331,-450.0,0.00019622,2]
[360178147,1746601845344,-450.0,0.00019622,2]
[360178148,1746601845353,-450.0,0.00019622,2]
[360178149,1746601845363,-450.0,0.00019622,2]
[360178150,1746601845372,-160.97987,0.00019622,2]
[360178151,1746601845381,-151.0,0.00019622,2]
[360178152,1746601845393,-450.0,0.00019622,2]
[360178153,1746601845402,-470.0,0.00019622,2]
[360178154,1746601845411,-450.0,0.00019622,2]
[360178155,1746601845422,-935.3,0.00019622,2]
[360178156,1746601845431,-935.3,0.00019622,2]
[360178157,1746601845440,-450.0,0.00019622,2]
[360178158,1746601845449,-342.65,0.00019622,2]
[360178159,1746601845458,-450.0,0.00019622,2]
[360178160,1746601845468,-450.0,0.00019622,2]
[360178161,1746601845478,-500.0,0.00019622,2]
[360178162,1746601845487,-450.0,0.00019622,2]
[360178163,1746601845496,-450.0,0.00019622,2]
[360178164,1746601845506,-572.35012035,0.00019622,2]
[360178165,1746601845515,-450.0,0.00019622,2]
[360178166,1746601845524,-450.0,0.00019622,2]
[360178167,1746601845534,-92795.26,0.00019622,2]
[360178168,1746601845543,-450.0,0.00019622,2]
[360178169,1746601845553,-450.0,0.00019622,2]
[360178170,1746601845563,-92795.26,0.00019622,2]
[360178171,1746601845573,-450.0,0.00019622,2]